[Event "Betsys MČR v online bleskovém šachu 2021"]
[Site "Chess.com"]
[Date "2021.04.17"]
[Round "3"]
[White "ffbp3q"]
[Black "DenryS"]
[Result "1-0"]
[WhiteElo "2387"]
[BlackElo "2113"]
[TimeControl "180+1"]
[EndTime "9:26:38 PDT"]
[Termination "Uživatel ffbp3q zvítězil matem"]

1. d4 {[%clk 0:03:00.9]} 1... Nf6 {[%clk 0:02:59.5]} 2. c4 {[%clk 0:03:00.9]}
2... g6 {[%clk 0:02:58.7]} 3. Nc3 {[%clk 0:03:00.2]} 3... Bg7 {[%clk 0:02:59.6]}
4. e4 {[%clk 0:03:00.1]} 4... d6 {[%clk 0:02:59.4]} 5. Nf3 {[%clk 0:03:00]} 5...
O-O {[%clk 0:02:59.7]} 6. h3 {[%clk 0:03:00.2]} 6... e5 {[%clk 0:02:58.8]} 7. d5
{[%clk 0:03:00]} 7... a5 {[%clk 0:02:55.8]} 8. Bg5 {[%clk 0:02:59.8]} 8... Na6
{[%clk 0:02:52.1]} 9. g4 {[%clk 0:02:59.3]} 9... Nc5 {[%clk 0:02:51.9]} 10. Qc2
{[%clk 0:02:53.8]} 10... h6 {[%clk 0:02:31.8]} 11. Be3 {[%clk 0:02:53.1]} 11...
b6 {[%clk 0:02:24.9]} 12. Be2 {[%clk 0:02:46.5]} 12... Nfd7 {[%clk 0:02:22.5]}
13. Rg1 {[%clk 0:02:41.2]} 13... Kh7 {[%clk 0:02:21.7]} 14. O-O-O {[%clk
0:02:30.7]} 14... Ba6 {[%clk 0:02:18.7]} 15. h4 {[%clk 0:02:24.2]} 15... f6
{[%clk 0:02:19]} 16. g5 {[%clk 0:02:06.4]} 16... fxg5 {[%clk 0:02:18.5]} 17.
hxg5 {[%clk 0:02:05.6]} 17... h5 {[%clk 0:02:18.3]} 18. Nh4 {[%clk 0:02:02.1]}
18... Qe8 {[%clk 0:02:13.1]} 19. Rg3 {[%clk 0:01:53.8]} 19... Rb8 {[%clk
0:02:12.3]} 20. Rh1 {[%clk 0:01:51.3]} 20... Kg8 {[%clk 0:02:04.1]} 21. Qd1
{[%clk 0:01:40.5]} 21... Rf4 {[%clk 0:01:54.7]} 22. Nxg6 {[%clk 0:01:12.2]}
22... Qxg6 {[%clk 0:01:47.6]} 23. Bxh5 {[%clk 0:01:11.8]} 23... Qh7 {[%clk
0:01:46.2]} 24. Bf7+ {[%clk 0:01:11.2]} 24... Rxf7 {[%clk 0:01:25.7]} 25. Rxh7
{[%clk 0:01:10.7]} 25... Kxh7 {[%clk 0:01:24.5]} 26. g6+ {[%clk 0:01:10.1]}
26... Kg8 {[%clk 0:01:24.8]} 27. gxf7+ {[%clk 0:01:10.3]} 27... Kxf7 {[%clk
0:01:25.7]} 28. Qh5+ {[%clk 0:01:05.9]} 28... Kf8 {[%clk 0:01:08.3]} 29. Qg6
{[%clk 0:00:58.2]} 29... Bf6 {[%clk 0:01:08.1]} 30. Qh7 {[%clk 0:00:46.6]} 30...
Ke8 {[%clk 0:00:59]} 31. Rg8+ {[%clk 0:00:33.8]} 31... Nf8 {[%clk 0:00:58.9]}
32. Qxc7 {[%clk 0:00:28]} 32... Rc8 {[%clk 0:00:59]} 33. Qxd6 {[%clk 0:00:26.7]}
33... Be7 {[%clk 0:00:53.7]} 34. Qg6+ {[%clk 0:00:21.3]} 34... Kd8 {[%clk
0:00:51.2]} 35. Bg5 {[%clk 0:00:15.4]} 35... Nd7 {[%clk 0:00:45.3]} 36. d6
{[%clk 0:00:12.3]} 36... Bxg5+ {[%clk 0:00:43.9]} 37. Qxg5+ {[%clk 0:00:12.1]}
37... Ke8 {[%clk 0:00:44.1]} 38. Qe7# {[%clk 0:00:12.2]} 1-0

[Event "Betsys MČR v online bleskovém šachu 2021"]
[Site "Chess.com"]
[Date "2021.04.17"]
[Round "3"]
[White "starypomalymuz"]
[Black "veronikam"]
[Result "0-1"]
[WhiteElo "1771"]
[BlackElo "1533"]
[TimeControl "180+1"]
[EndTime "9:26:39 PDT"]
[Termination "Uživatel veronikam zvítězil po vzdání soupeře"]

1. e4 {[%clk 0:03:00.9]} 1... c5 {[%clk 0:02:58.9]} 2. g3 {[%clk 0:03:00.1]}
2... Nc6 {[%clk 0:02:57.1]} 3. Bg2 {[%clk 0:03:00.5]} 3... g6 {[%clk 0:02:56.1]}
4. Ne2 {[%clk 0:03:00.9]} 4... Bg7 {[%clk 0:02:55.8]} 5. c3 {[%clk 0:03:01.5]}
5... e6 {[%clk 0:02:55.2]} 6. O-O {[%clk 0:03:00.9]} 6... Nge7 {[%clk
0:02:54.9]} 7. d4 {[%clk 0:03:00.8]} 7... cxd4 {[%clk 0:02:54.3]} 8. cxd4 {[%clk
0:03:00.5]} 8... d5 {[%clk 0:02:52.4]} 9. e5 {[%clk 0:02:27.4]} 9... O-O {[%clk
0:02:51.4]} 10. Be3 {[%clk 0:02:26.9]} 10... Nf5 {[%clk 0:02:49.9]} 11. Nbc3
{[%clk 0:02:26.3]} 11... a6 {[%clk 0:02:40.6]} 12. Rc1 {[%clk 0:02:22.7]} 12...
Bd7 {[%clk 0:02:35]} 13. Na4 {[%clk 0:02:17]} 13... Nxe3 {[%clk 0:02:31.1]} 14.
fxe3 {[%clk 0:02:15.2]} 14... Bh6 {[%clk 0:02:31]} 15. Qb3 {[%clk 0:02:07]}
15... Na5 {[%clk 0:02:28.4]} 16. Qb6 {[%clk 0:01:11.3]} 16... Bxa4 {[%clk
0:02:20.9]} 17. Qxd8 {[%clk 0:01:04.5]} 17... Bxe3+ {[%clk 0:02:20]} 18. Kh1
{[%clk 0:01:03.8]} 18... Rfxd8 {[%clk 0:02:19.9]} 19. Rc3 {[%clk 0:00:57.1]}
19... Bh6 {[%clk 0:02:14.7]} 20. b3 {[%clk 0:00:55.6]} 20... Bd7 {[%clk
0:02:07.8]} 21. Nf4 {[%clk 0:00:52.6]} 21... Rac8 {[%clk 0:02:05.1]} 22. Rfc1
{[%clk 0:00:50.5]} 22... Kf8 {[%clk 0:01:58.2]} 23. Rc7 {[%clk 0:00:47.5]} 23...
Bxf4 {[%clk 0:01:33.9]} 24. gxf4 {[%clk 0:00:45.4]} 24... Bc6 {[%clk 0:01:28.5]}
25. Rxc8 {[%clk 0:00:44.8]} 25... Rxc8 {[%clk 0:01:27.9]} 26. h4 {[%clk
0:00:42.9]} 26... Ke7 {[%clk 0:01:19.7]} 27. Kh2 {[%clk 0:00:41.8]} 27... Kd7
{[%clk 0:01:18.2]} 28. Kh3 {[%clk 0:00:41.9]} 28... Bb5 {[%clk 0:01:16.5]} 29.
Rxc8 {[%clk 0:00:35.9]} 29... Kxc8 {[%clk 0:01:16.4]} 30. Kg4 {[%clk 0:00:33.8]}
30... Bd3 {[%clk 0:01:15.6]} 31. Kg5 {[%clk 0:00:33.2]} 31... Bb1 {[%clk
0:01:06.5]} 32. b4 {[%clk 0:00:28.2]} 32... Nc6 {[%clk 0:01:05.1]} 33. a3 {[%clk
0:00:26.5]} 33... Nxd4 {[%clk 0:01:03.9]} 34. Kf6 {[%clk 0:00:27]} 34... Ne2
{[%clk 0:00:57.9]} 35. Kxf7 {[%clk 0:00:24.3]} 35... Nxf4 {[%clk 0:00:57.1]} 36.
Bf3 {[%clk 0:00:24.2]} 36... Bf5 {[%clk 0:00:52.7]} 37. Kg7 {[%clk 0:00:22.8]}
37... Nd3 {[%clk 0:00:48.5]} 0-1

[Event "Betsys MČR v online bleskovém šachu 2021"]
[Site "Chess.com"]
[Date "2021.04.17"]
[Round "3"]
[White "Loveforever_Pepi"]
[Black "p_kana"]
[Result "1-0"]
[WhiteElo "2304"]
[BlackElo "1803"]
[TimeControl "180+1"]
[EndTime "9:26:40 PDT"]
[Termination "Uživatel Loveforever_Pepi zvítězil na čas"]

1. e4 {[%clk 0:03:00.9]} 1... c5 {[%clk 0:02:53.3]} 2. d4 {[%clk 0:03:00.6]}
2... cxd4 {[%clk 0:02:52.4]} 3. c3 {[%clk 0:03:00.6]} 3... d3 {[%clk 0:02:51]}
4. Bxd3 {[%clk 0:03:00]} 4... d6 {[%clk 0:02:43.4]} 5. Nf3 {[%clk 0:02:59.6]}
5... Nc6 {[%clk 0:02:42.6]} 6. h3 {[%clk 0:02:59]} 6... Nf6 {[%clk 0:02:41.9]}
7. O-O {[%clk 0:02:58.4]} 7... e6 {[%clk 0:02:40.5]} 8. Qe2 {[%clk 0:02:57.8]}
8... Be7 {[%clk 0:02:40.4]} 9. Rd1 {[%clk 0:02:57.5]} 9... Qc7 {[%clk
0:02:37.7]} 10. Bf4 {[%clk 0:02:56]} 10... O-O {[%clk 0:02:32.6]} 11. Nbd2
{[%clk 0:02:54.5]} 11... a6 {[%clk 0:02:22.4]} 12. a4 {[%clk 0:02:53.2]} 12...
b6 {[%clk 0:02:11.7]} 13. Nc4 {[%clk 0:02:42.7]} 13... Rd8 {[%clk 0:02:02.4]}
14. Bh2 {[%clk 0:02:33.9]} 14... Bb7 {[%clk 0:01:58.6]} 15. Bc2 {[%clk
0:02:06.3]} 15... b5 {[%clk 0:01:47.6]} 16. axb5 {[%clk 0:02:05.4]} 16... axb5
{[%clk 0:01:48]} 17. Rxa8 {[%clk 0:02:05]} 17... Bxa8 {[%clk 0:01:46.2]} 18. Na3
{[%clk 0:01:56.1]} 18... b4 {[%clk 0:01:43.1]} 19. Nb5 {[%clk 0:01:55.5]} 19...
Qb8 {[%clk 0:01:24.9]} 20. c4 {[%clk 0:01:51.8]} 20... Ne5 {[%clk 0:01:09.9]}
21. Nfd4 {[%clk 0:01:49.3]} 21... Qc8 {[%clk 0:00:54.7]} 22. b3 {[%clk
0:01:41.1]} 22... Ne8 {[%clk 0:00:34.7]} 23. Ra1 {[%clk 0:01:35.9]} 23... Bc6
{[%clk 0:00:30.4]} 24. Na7 {[%clk 0:01:24]} 24... Qc7 {[%clk 0:00:25.9]} 25.
Bxe5 {[%clk 0:01:22.2]} 25... Ra8 {[%clk 0:00:15.5]} 26. Ndxc6 {[%clk
0:01:12.2]} 26... dxe5 {[%clk 0:00:12.3]} 27. Nxe7+ {[%clk 0:01:11.4]} 27...
Qxe7 {[%clk 0:00:13.1]} 28. Qe3 {[%clk 0:01:11.3]} 28... Nd6 {[%clk 0:00:09.9]}
29. Ra4 {[%clk 0:01:06.3]} 29... Rd8 {[%clk 0:00:02.3]} 30. Nc6 {[%clk
0:01:03.8]} 30... Qc7 {[%clk 0:00:02.4]} 31. Nxd8 {[%clk 0:01:03]} 31... Qxd8
{[%clk 0:00:02.1]} 32. Qd2 {[%clk 0:00:45.3]} 32... Qc7 {[%clk 0:00:02.2]} 33.
Qxd6 {[%clk 0:00:42.3]} 1-0

[Event "Betsys MČR v online bleskovém šachu 2021"]
[Site "Chess.com"]
[Date "2021.04.17"]
[Round "3"]
[White "Maty122"]
[Black "lupinek23"]
[Result "0-1"]
[WhiteElo "1131"]
[BlackElo "1611"]
[TimeControl "180+1"]
[EndTime "9:26:42 PDT"]
[Termination "Uživatel lupinek23 zvítězil na čas"]

1. e4 {[%clk 0:03:00.9]} 1... e5 {[%clk 0:02:58.5]} 2. Nf3 {[%clk 0:03:01.1]}
2... Nc6 {[%clk 0:02:58.3]} 3. Bb5 {[%clk 0:03:00.3]} 3... d6 {[%clk 0:02:57.8]}
4. O-O {[%clk 0:02:56.3]} 4... Nf6 {[%clk 0:02:57]} 5. Nc3 {[%clk 0:02:55.5]}
5... Bd7 {[%clk 0:02:55.4]} 6. Bxc6 {[%clk 0:02:47.2]} 6... Bxc6 {[%clk
0:02:54.2]} 7. d4 {[%clk 0:02:47.9]} 7... exd4 {[%clk 0:02:52.5]} 8. Nxd4 {[%clk
0:02:47.2]} 8... Be7 {[%clk 0:02:52.7]} 9. Nxc6 {[%clk 0:02:44]} 9... bxc6
{[%clk 0:02:51.4]} 10. Re1 {[%clk 0:02:40.7]} 10... O-O {[%clk 0:02:50.5]} 11.
Bf4 {[%clk 0:02:37.2]} 11... h6 {[%clk 0:02:48.8]} 12. Qf3 {[%clk 0:02:31.1]}
12... Qd7 {[%clk 0:02:48.3]} 13. h3 {[%clk 0:02:25.4]} 13... Rab8 {[%clk
0:02:46.4]} 14. Qg3 {[%clk 0:02:23.6]} 14... Kh8 {[%clk 0:02:43.5]} 15. b3
{[%clk 0:02:13.5]} 15... Nh5 {[%clk 0:02:42.2]} 16. Qf3 {[%clk 0:01:57.3]} 16...
Nxf4 {[%clk 0:02:41.4]} 17. Qxf4 {[%clk 0:01:56.6]} 17... Bg5 {[%clk 0:02:38.2]}
18. Qg3 {[%clk 0:01:53.7]} 18... Bf6 {[%clk 0:02:37]} 19. Rad1 {[%clk
0:01:46.4]} 19... Qe6 {[%clk 0:02:35.5]} 20. Qf3 {[%clk 0:01:34.1]} 20... Rb4
{[%clk 0:02:24.8]} 21. Na4 {[%clk 0:01:25.9]} 21... Re8 {[%clk 0:02:15.7]} 22.
c4 {[%clk 0:01:16]} 22... Bg5 {[%clk 0:01:54.8]} 23. g3 {[%clk 0:01:07.3]} 23...
Qxh3 {[%clk 0:01:51.1]} 24. Qg2 {[%clk 0:00:58.3]} 24... Qg4 {[%clk 0:01:48]}
25. Nb2 {[%clk 0:00:45.5]} 25... Rbb8 {[%clk 0:01:45.4]} 26. Nd3 {[%clk
0:00:43.3]} 26... Re7 {[%clk 0:01:37.5]} 27. f3 {[%clk 0:00:41]} 27... Qe6
{[%clk 0:01:33.9]} 28. f4 {[%clk 0:00:38.1]} 28... Bf6 {[%clk 0:01:27.1]} 29. f5
{[%clk 0:00:28.5]} 29... Qd7 {[%clk 0:01:21.9]} 30. Qh3 {[%clk 0:00:26.4]} 30...
Bd4+ {[%clk 0:01:17.8]} 31. Kf1 {[%clk 0:00:25.6]} 31... Rbe8 {[%clk 0:01:16.3]}
32. Qg4 {[%clk 0:00:20.9]} 32... g6 {[%clk 0:01:11.6]} 33. f6 {[%clk 0:00:18.4]}
33... Qxg4 {[%clk 0:01:10.8]} 34. fxe7 {[%clk 0:00:16.8]} 34... Rxe7 {[%clk
0:01:10.5]} 35. Nf2 {[%clk 0:00:15.1]} 35... Qxg3 {[%clk 0:01:09.5]} 36. Rxd4
{[%clk 0:00:12.3]} 36... Qf4 {[%clk 0:01:01.6]} 37. Kg1 {[%clk 0:00:08]} 37...
c5 {[%clk 0:00:58.2]} 38. Rd3 {[%clk 0:00:05.5]} 38... f5 {[%clk 0:00:52.8]} 0-1

[Event "Betsys MČR v online bleskovém šachu 2021"]
[Site "Chess.com"]
[Date "2021.04.17"]
[Round "3"]
[White "NikolaKusova"]
[Black "JuliliaR"]
[Result "0-1"]
[WhiteElo "767"]
[BlackElo "1340"]
[TimeControl "180+1"]
[EndTime "9:26:42 PDT"]
[Termination "Uživatel JuliliaR zvítězil matem"]

1. e4 {[%clk 0:03:00.9]} 1... d5 {[%clk 0:02:57.1]} 2. exd5 {[%clk 0:02:59.8]}
2... Qxd5 {[%clk 0:02:56.9]} 3. Nc3 {[%clk 0:02:58.4]} 3... Qd6 {[%clk
0:02:56.2]} 4. Nf3 {[%clk 0:02:45.8]} 4... c6 {[%clk 0:02:50.6]} 5. Bc4 {[%clk
0:02:40.3]} 5... Nf6 {[%clk 0:02:44.3]} 6. O-O {[%clk 0:02:35.8]} 6... Bg4
{[%clk 0:02:42.3]} 7. d3 {[%clk 0:02:30.5]} 7... e6 {[%clk 0:02:37.8]} 8. Bg5
{[%clk 0:02:07]} 8... Nbd7 {[%clk 0:02:32.5]} 9. h3 {[%clk 0:02:02.8]} 9... Bh5
{[%clk 0:02:31.1]} 10. Re1 {[%clk 0:01:57.7]} 10... Be7 {[%clk 0:02:23]} 11.
Bxf6 {[%clk 0:01:54]} 11... Nxf6 {[%clk 0:02:18.3]} 12. d4 {[%clk 0:01:22.6]}
12... O-O {[%clk 0:02:15.3]} 13. Qd3 {[%clk 0:01:18.3]} 13... Bg6 {[%clk
0:02:07]} 14. Qe3 {[%clk 0:01:11.6]} 14... Nd5 {[%clk 0:02:02.9]} 15. Bxd5
{[%clk 0:01:10.1]} 15... cxd5 {[%clk 0:02:01.1]} 16. Rad1 {[%clk 0:01:00]} 16...
Bxc2 {[%clk 0:01:54.7]} 17. Rd2 {[%clk 0:00:48.3]} 17... Bg6 {[%clk 0:01:53.5]}
18. Nb5 {[%clk 0:00:41.5]} 18... Qb6 {[%clk 0:01:45.9]} 19. Nc3 {[%clk
0:00:29.1]} 19... Bb4 {[%clk 0:01:36.6]} 20. Ne5 {[%clk 0:00:20.9]} 20... Rfc8
{[%clk 0:01:27.7]} 21. Nd7 {[%clk 0:00:14.2]} 21... Qc6 {[%clk 0:01:23]} 22. Ne5
{[%clk 0:00:11.5]} 22... Qc7 {[%clk 0:01:19.5]} 23. Rc2 {[%clk 0:00:06.8]} 23...
Qa5 {[%clk 0:01:13.7]} 24. Rec1 {[%clk 0:00:06.2]} 24... Bxc2 {[%clk 0:01:08.7]}
25. Rxc2 {[%clk 0:00:05.9]} 25... Bxc3 {[%clk 0:01:06.7]} 26. bxc3 {[%clk
0:00:04.6]} 26... Rc7 {[%clk 0:01:02]} 27. Qf3 {[%clk 0:00:01.7]} 27... Rac8
{[%clk 0:00:58.6]} 28. Qg3 {[%clk 0:00:01.9]} 28... Rxc3 {[%clk 0:00:53.6]} 29.
Rxc3 {[%clk 0:00:01.8]} 29... Rxc3 {[%clk 0:00:48.9]} 30. Qg4 {[%clk 0:00:01.6]}
30... Rc1+ {[%clk 0:00:46.3]} 31. Kh2 {[%clk 0:00:01.8]} 31... Qxa2 {[%clk
0:00:43.3]} 32. g3 {[%clk 0:00:02]} 32... Qxf2# {[%clk 0:00:40.8]} 0-1

[Event "Betsys MČR v online bleskovém šachu 2021"]
[Site "Chess.com"]
[Date "2021.04.17"]
[Round "3"]
[White "sodikus"]
[Black "Milan_Jancek"]
[Result "1-0"]
[WhiteElo "2310"]
[BlackElo "1818"]
[TimeControl "180+1"]
[EndTime "9:26:43 PDT"]
[Termination "Uživatel sodikus zvítězil po vzdání soupeře"]

1. Nf3 {[%clk 0:03:00.9]} 1... d5 {[%clk 0:02:59.5]} 2. d4 {[%clk 0:02:59.8]}
2... Nf6 {[%clk 0:03:00.1]} 3. c4 {[%clk 0:02:59.4]} 3... e6 {[%clk 0:03:00.7]}
4. Nc3 {[%clk 0:02:58.8]} 4... Be7 {[%clk 0:03:00.7]} 5. Bg5 {[%clk 0:02:58.7]}
5... O-O {[%clk 0:03:00.9]} 6. e3 {[%clk 0:02:59]} 6... h6 {[%clk 0:03:01.5]} 7.
Bh4 {[%clk 0:02:58.8]} 7... b6 {[%clk 0:03:02.1]} 8. cxd5 {[%clk 0:02:58.4]}
8... Nxd5 {[%clk 0:02:59.9]} 9. Bxe7 {[%clk 0:02:55.2]} 9... Qxe7 {[%clk
0:02:59.1]} 10. Nxd5 {[%clk 0:02:55]} 10... exd5 {[%clk 0:02:59.3]} 11. Bd3
{[%clk 0:02:55.1]} 11... c5 {[%clk 0:02:57]} 12. b3 {[%clk 0:02:52.5]} 12... Ba6
{[%clk 0:02:55.2]} 13. Bxa6 {[%clk 0:02:41.5]} 13... Nxa6 {[%clk 0:02:55]} 14.
O-O {[%clk 0:02:41.2]} 14... Rac8 {[%clk 0:02:53.5]} 15. dxc5 {[%clk 0:02:36.4]}
15... Nxc5 {[%clk 0:02:50]} 16. Qxd5 {[%clk 0:02:31.5]} 16... Rfd8 {[%clk
0:02:50.1]} 17. Qf5 {[%clk 0:02:19.4]} 17... Rc7 {[%clk 0:02:21.9]} 18. Rfd1
{[%clk 0:02:13.2]} 18... Rcd7 {[%clk 0:02:21.9]} 19. Rxd7 {[%clk 0:02:06.8]}
19... Rxd7 {[%clk 0:02:21.7]} 20. h3 {[%clk 0:01:45.3]} 20... Qd6 {[%clk
0:02:20.8]} 21. Nd4 {[%clk 0:01:38.5]} 21... g6 {[%clk 0:02:20.3]} 22. Qf3
{[%clk 0:01:31.1]} 22... Kg7 {[%clk 0:02:02.3]} 23. Rd1 {[%clk 0:01:27.5]} 23...
Kg8 {[%clk 0:01:56.1]} 24. Qa8+ {[%clk 0:01:21.9]} 24... Kh7 {[%clk 0:01:55.2]}
25. Qe8 {[%clk 0:00:59.9]} 25... Re7 {[%clk 0:01:48.2]} 26. Qc6 {[%clk 0:00:54]}
26... Rd7 {[%clk 0:01:40.9]} 27. Qf3 {[%clk 0:00:45.6]} 27... Ne6 {[%clk
0:01:36.5]} 28. h4 {[%clk 0:00:34.3]} 28... a5 {[%clk 0:01:21]} 29. g3 {[%clk
0:00:32.7]} 29... Nc5 {[%clk 0:01:20.9]} 30. Rc1 {[%clk 0:00:27.6]} 30... Re7
{[%clk 0:01:20.7]} 31. Rc4 {[%clk 0:00:21.7]} 31... Qe5 {[%clk 0:01:12.8]} 32.
Kg2 {[%clk 0:00:20.8]} 32... Rd7 {[%clk 0:01:04.8]} 33. Nc6 {[%clk 0:00:20.1]}
33... Qe6 {[%clk 0:01:02.9]} 34. Nd4 {[%clk 0:00:17.6]} 34... Qe5 {[%clk
0:01:02.8]} 35. b4 {[%clk 0:00:13.2]} 35... axb4 {[%clk 0:01:01.9]} 36. Rxb4
{[%clk 0:00:14.1]} 36... Nd3 {[%clk 0:01:00.4]} 37. Rb1 {[%clk 0:00:11.2]} 37...
Ra7 {[%clk 0:00:52.3]} 38. Rd1 {[%clk 0:00:10.4]} 38... Nc5 {[%clk 0:00:49.7]}
39. Nc6 {[%clk 0:00:08.9]} 1-0

[Event "Betsys MČR v online bleskovém šachu 2021"]
[Site "Chess.com"]
[Date "2021.04.17"]
[Round "3"]
[White "czechfant94"]
[Black "clarissamcclellan"]
[Result "1/2-1/2"]
[WhiteElo "1610"]
[BlackElo "1946"]
[TimeControl "180+1"]
[EndTime "9:26:44 PDT"]
[Termination "Remíza opakováním pozice"]

1. e4 {[%clk 0:03:00.9]} 1... e6 {[%clk 0:02:55.6]} 2. d4 {[%clk 0:03:00.6]}
2... d5 {[%clk 0:02:51.4]} 3. Nd2 {[%clk 0:03:00.7]} 3... Be7 {[%clk 0:02:49.1]}
4. Ngf3 {[%clk 0:02:56.7]} 4... Nf6 {[%clk 0:02:42.1]} 5. Bd3 {[%clk 0:02:48.2]}
5... c5 {[%clk 0:02:36.2]} 6. c3 {[%clk 0:02:47.3]} 6... Nc6 {[%clk 0:02:29.7]}
7. O-O {[%clk 0:02:40.7]} 7... O-O {[%clk 0:02:22.8]} 8. exd5 {[%clk 0:02:36.2]}
8... exd5 {[%clk 0:02:12]} 9. dxc5 {[%clk 0:02:28.7]} 9... Bxc5 {[%clk 0:02:10]}
10. Nb3 {[%clk 0:02:28.4]} 10... Bd6 {[%clk 0:02:09]} 11. Bg5 {[%clk 0:02:25.8]}
11... h6 {[%clk 0:02:06.5]} 12. Bh4 {[%clk 0:02:25.4]} 12... Bg4 {[%clk
0:02:02.4]} 13. h3 {[%clk 0:02:23.9]} 13... Bh5 {[%clk 0:02:01.5]} 14. Bg3
{[%clk 0:02:18.3]} 14... Bxg3 {[%clk 0:01:59]} 15. fxg3 {[%clk 0:02:17.7]} 15...
Ne5 {[%clk 0:01:58.3]} 16. g4 {[%clk 0:02:15.2]} 16... Nxd3 {[%clk 0:01:53.3]}
17. Qxd3 {[%clk 0:02:13.8]} 17... Bg6 {[%clk 0:01:52.7]} 18. Qb5 {[%clk
0:02:08.6]} 18... Qb6+ {[%clk 0:01:38.5]} 19. Qxb6 {[%clk 0:02:07.8]} 19... axb6
{[%clk 0:01:39.4]} 20. Ne5 {[%clk 0:02:07.8]} 20... Rfe8 {[%clk 0:01:34.4]} 21.
Nxg6 {[%clk 0:02:06.6]} 21... fxg6 {[%clk 0:01:34.6]} 22. Nd4 {[%clk 0:01:58.6]}
22... Ne4 {[%clk 0:01:31.8]} 23. a3 {[%clk 0:01:55.4]} 23... Nd2 {[%clk
0:01:30]} 24. Rfe1 {[%clk 0:01:54.4]} 24... Nc4 {[%clk 0:01:28.9]} 25. Rxe8+
{[%clk 0:01:41.2]} 25... Rxe8 {[%clk 0:01:27.7]} 26. Kf1 {[%clk 0:01:29.9]}
26... Nd2+ {[%clk 0:01:13.5]} 27. Kf2 {[%clk 0:01:26.2]} 27... Ne4+ {[%clk
0:01:12.3]} 28. Kf3 {[%clk 0:01:22.1]} 28... Nd2+ {[%clk 0:01:07.1]} 29. Kf2
{[%clk 0:01:22.2]} 29... Ne4+ {[%clk 0:01:06.2]} 30. Kf3 {[%clk 0:01:22.3]}
30... Nc5 {[%clk 0:01:05.7]} 31. Nb5 {[%clk 0:01:11.2]} 31... Nd3 {[%clk
0:01:03.6]} 32. Rd1 {[%clk 0:01:08.3]} 32... Nxb2 {[%clk 0:00:59.5]} 33. Rxd5
{[%clk 0:01:07.2]} 33... Nc4 {[%clk 0:00:57.8]} 34. Kf2 {[%clk 0:00:46]} 34...
Ra8 {[%clk 0:00:43.3]} 35. Rd7 {[%clk 0:00:45.5]} 35... Nxa3 {[%clk 0:00:42.6]}
36. Nxa3 {[%clk 0:00:45.1]} 36... Rxa3 {[%clk 0:00:42.9]} 37. Rxb7 {[%clk
0:00:45.8]} 37... Rb3 {[%clk 0:00:41.2]} 38. c4 {[%clk 0:00:45.2]} 38... Rb4
{[%clk 0:00:40.3]} 39. Ke3 {[%clk 0:00:41.4]} 39... Rxc4 {[%clk 0:00:39.7]} 40.
Rxb6 {[%clk 0:00:40.8]} 40... Rc2 {[%clk 0:00:38.4]} 41. Kf3 {[%clk 0:00:40.3]}
41... Kf7 {[%clk 0:00:35.8]} 42. Rb7+ {[%clk 0:00:39.8]} 42... Kf6 {[%clk
0:00:35.1]} 43. Rb6+ {[%clk 0:00:40.1]} 43... Kf7 {[%clk 0:00:32]} 44. Rb7+
{[%clk 0:00:40.4]} 44... Kf6 {[%clk 0:00:31.1]} 45. Rb6+ {[%clk 0:00:40]} 45...
Kf7 {[%clk 0:00:31.2]} 1/2-1/2

[Event "Betsys MČR v online bleskovém šachu 2021"]
[Site "Chess.com"]
[Date "2021.04.17"]
[Round "3"]
[White "Svandik49"]
[Black "mayerrs"]
[Result "1-0"]
[WhiteElo "2274"]
[BlackElo "1898"]
[TimeControl "180+1"]
[EndTime "9:26:45 PDT"]
[Termination "Uživatel Svandik49 zvítězil po vzdání soupeře"]

1. Nf3 {[%clk 0:02:56.2]} 1... g6 {[%clk 0:02:59.8]} 2. g3 {[%clk 0:02:56.4]}
2... Bg7 {[%clk 0:03:00.5]} 3. Bg2 {[%clk 0:02:57.3]} 3... e6 {[%clk 0:03:00.8]}
4. O-O {[%clk 0:02:55.5]} 4... Ne7 {[%clk 0:03:01.4]} 5. c4 {[%clk 0:02:54]}
5... O-O {[%clk 0:03:01.5]} 6. Nc3 {[%clk 0:02:53.5]} 6... b6 {[%clk 0:03:01.9]}
7. b3 {[%clk 0:02:51.8]} 7... Bb7 {[%clk 0:03:01]} 8. Bb2 {[%clk 0:02:51.8]}
8... a6 {[%clk 0:02:59.7]} 9. e3 {[%clk 0:02:50.9]} 9... d5 {[%clk 0:02:59.2]}
10. Qe2 {[%clk 0:02:49.8]} 10... c5 {[%clk 0:02:57.7]} 11. Rfd1 {[%clk
0:02:44.9]} 11... Qc7 {[%clk 0:02:57.8]} 12. d4 {[%clk 0:02:36.7]} 12... Nd7
{[%clk 0:02:56.5]} 13. Rac1 {[%clk 0:02:33.6]} 13... Rab8 {[%clk 0:02:51.3]} 14.
cxd5 {[%clk 0:02:25.6]} 14... exd5 {[%clk 0:02:52.2]} 15. Na4 {[%clk 0:02:25.5]}
15... Qd6 {[%clk 0:02:40.8]} 16. Bh3 {[%clk 0:02:07.9]} 16... f5 {[%clk
0:02:21.7]} 17. dxc5 {[%clk 0:01:32.3]} 17... bxc5 {[%clk 0:02:20.2]} 18. Bxg7
{[%clk 0:01:32.2]} 18... Kxg7 {[%clk 0:02:21.1]} 19. Nc3 {[%clk 0:01:23.9]}
19... h6 {[%clk 0:02:06.3]} 20. Nd2 {[%clk 0:01:22.2]} 20... d4 {[%clk
0:01:54.2]} 21. exd4 {[%clk 0:01:18.9]} 21... cxd4 {[%clk 0:01:55.1]} 22. Na4
{[%clk 0:00:58.5]} 22... d3 {[%clk 0:01:38.7]} 23. Qf1 {[%clk 0:00:56.9]} 23...
Ne5 {[%clk 0:01:24.1]} 24. Bg2 {[%clk 0:00:52.5]} 24... Nd5 {[%clk 0:01:10.7]}
25. Nc4 {[%clk 0:00:50.1]} 25... Nxc4 {[%clk 0:01:09.6]} 26. Rxc4 {[%clk
0:00:42.6]} 26... Nb4 {[%clk 0:00:46.2]} 27. Bxb7 {[%clk 0:00:37.9]} 27... Rxb7
{[%clk 0:00:47.1]} 28. a3 {[%clk 0:00:38.1]} 28... Nc6 {[%clk 0:00:26.7]} 29.
Rxd3 {[%clk 0:00:36.1]} 29... Qe6 {[%clk 0:00:20.6]} 30. Nc5 {[%clk 0:00:35.1]}
30... Qe7 {[%clk 0:00:17.8]} 31. Nxb7 {[%clk 0:00:33.6]} 31... Qxb7 {[%clk
0:00:18.7]} 32. Qc1 {[%clk 0:00:30.8]} 32... Nd8 {[%clk 0:00:15.1]} 33. Rc7+
{[%clk 0:00:30.2]} 33... Rf7 {[%clk 0:00:13.3]} 34. Rxb7 {[%clk 0:00:30.2]}
34... Rxb7 {[%clk 0:00:14.2]} 35. Rxd8 {[%clk 0:00:30.2]} 1-0